bitfinex-derivatives/quotes_SOLF0:USTF0_20250928
["timestamp","ask_amount","ask_price","bid_price","bid_amount"]
[1759100796408,7.37,209.82,209.76,0.04]
[1759100797699,7.37,209.82,209.78,4.2882]
[1759100798100,7.37,209.85,209.76,0.04]
[1759100798408,7.37,209.82,209.75,4.2886]
[1759100805109,7.37,209.82,209.75,4.3286]
[1759100805299,7.37,209.82,209.76,4.2884]
[1759100808299,7.37,209.82,209.75,0.04]
[1759100810806,7.37,209.83,209.77,4.2882]
[1759100811417,7.37,209.83,209.78,4.288]
[1759100811609,8.76620457,209.84,209.78,4.288]
[1759100811910,7.37,209.84,209.78,4.288]
[1759100812517,7.37,209.84,209.76,0.04]
[1759100812710,8.76620457,209.84,209.76,0.04]
[1759100814525,7.37,209.84,209.76,0.04]
[1759100814713,8.76620457,209.84,209.77,4.2882]
[1759100815523,8.76620457,209.84,209.78,4.2881]
[1759100816220,8.76740724,209.86,209.77,66.709]
[1759100816413,8.76740724,209.86,209.74,66.7182]
[1759100816617,8.76740724,209.86,209.79,4.2878]
[1759100817421,10.16361181,209.86,209.79,4.2878]
[1759100817625,10.16361181,209.86,209.8,4.2876]
[1759100818016,10.16361181,209.86,209.75,1.39620457]
[1759100818219,10.16361181,209.86,209.79,4.2878]
[1759100819422,10.16361181,209.86,209.8,4.2877]
[1759100820125,10.16361181,209.86,209.78,4.2881]
[1759100821522,10.16361181,209.86,209.79,4.2878]
[1759100821924,10.16361181,209.86,209.75,1.39620457]
[1759100822424,8.76740724,209.86,209.78,1.39620457]
[1759100822626,8.76740724,209.86,209.77,66.7079]
[1759100822825,8.76740724,209.86,209.78,1.39620457]
[1759100823722,7.55,209.85,209.81,4.2874]
[1759100823923,1.21740724,209.86,209.81,4.2874]
[1759100824123,1.21740724,209.86,209.79,4.2879]
[1759100824124,7.55,209.85,209.79,4.2879]
[1759100824628,7.55,209.85,209.74,66.7182]
[1759100824629,1.39620457,209.85,209.73,1.39620457]
[1759100824820,7.55,209.84,209.73,1.39620457]
[1759100825730,7.55,209.84,209.76,4.2885]
[1759100827341,7.55,209.84,209.77,4.2883]
[1759100829036,7.55,209.84,209.75,4.2888]
[1759100829235,7.55,209.81,209.75,4.2888]
[1759100830434,7.55,209.78,209.7,5.2934484]
[1759100831633,7.92,209.78,209.73,4.2891]
[1759100831936,1.39620457,209.79,209.73,4.2891]
[1759100832133,7.92,209.78,209.73,4.2891]
[1759100832331,1.39620457,209.79,209.73,4.2891]
[1759100832535,1.39620457,209.79,209.75,4.2888]
[1759100832738,9.31620457,209.83,209.72,66.7247]
[1759100832939,9.31620457,209.83,209.74,1.39620457]
[1759100833438,7.92,209.85,209.78,4.288]
[1759100833632,7.92,209.85,209.74,68.11440457]
[1759100833832,7.92,209.85,209.75,66.7144]
[1759100834440,9.13740724,209.86,209.78,66.7048]
[1759100834630,7.92,209.95,209.81,66.696]
[1759100834835,7.92,209.92,209.8,68.09540457]
[1759100835036,7.92,209.89,209.83,4.2871]
[1759100835837,7.92,209.89,209.81,4.2876]
[1759100836642,7.92,209.89,209.82,4.2872]
[1759100837340,7.92,209.86,209.82,4.2872]
[1759100837539,7.92,209.86,209.79,4.2878]
[1759100839241,1.39620457,209.84,209.79,4.2878]
[1759100839947,7.92,209.83,209.81,4.2876]
[1759100840152,1.39620457,209.84,209.81,4.2876]
[1759100840444,7.92,209.83,209.81,4.2876]
[1759100840640,1.39620457,209.84,209.81,4.2876]
[1759100841038,7.92,209.83,209.73,6.68965297]
[1759100842548,7.92,209.83,209.77,4.2883]
[1759100843551,7.92,209.8,209.74,4.2888]
[1759100845248,7.45,209.84,209.72,66.7249]
[1759100845454,1.39620457,209.83,209.73,1.39620457]
[1759100846247,7.45,209.82,209.78,4.2881]
[1759100846655,1.39620457,209.83,209.78,4.2881]
[1759100846954,8.58341055,209.85,209.79,4.2878]
[1759100847249,8.58341055,209.85,209.77,66.7078]
[1759100847553,7.45,209.88,209.78,66.7052]
[1759100847745,7.45,209.88,209.79,68.09800457]
[1759100848149,7.45,209.88,209.79,1.39620457]
[1759100848348,7.45,209.88,209.77,72.0012484]
[1759100849247,7.45,209.88,209.79,66.7026]
[1759100849449,7.45,209.88,209.77,6.87894403]
[1759100849647,7.45,209.88,209.81,4.2875]
[1759100851556,7.45,209.88,209.82,4.2872]
[1759100851962,2.17954422,209.9,209.8,66.6985]
[1759100851963,7.45,209.89,209.8,66.6985]
[1759100852756,2.17954422,209.9,209.84,4.2868]
[1759100853152,7.45,209.89,209.84,4.2868]
[1759100853360,9.62954422,209.9,209.84,4.2868]
[1759100854663,2.17954422,209.92,209.86,4.2866]
[1759100854862,7.45,209.91,209.86,4.2866]
[1759100855066,7.45,209.94,209.84,66.685]
[1759100855662,7.45,209.94,209.88,4.2861]
[1759100856764,7.45,209.94,209.9,4.2857]
[1759100857164,7.45,209.97,209.87,66.6763]
[1759100858059,7.45,209.97,209.91,4.2853]
[1759100859768,7.45,209.97,209.89,4.2859]
[1759100863772,7.45,209.97,209.87,4.2863]
[1759100864371,7.45,209.97,209.83,117.84]
[1759100864372,2.17954422,209.93,209.85,4.2867]
[1759100864563,7.45,209.92,209.85,4.2867]
[1759100864765,7.45,209.9,209.78,66.7041]
[1759100864963,7.45,209.9,209.75,72.0074484]
[1759100864964,7.45,209.89,209.79,4.2878]
[1759100866673,7.45,209.89,209.81,4.2875]
[1759100867385,32.26,209.92,209.77,15.99692271]
[1759100867674,7.45,209.91,209.77,15.99692271]
[1759100867976,7.45,209.9,209.77,15.99692271]
[1759100868873,7.45,209.9,209.8,4.2876]
[1759100870775,11.7359,209.9,209.8,4.2876]
[1759100871682,11.7359,209.9,209.82,4.2874]
[1759100872872,7.45,209.9,209.82,4.2874]
[1759100873872,66.6397,209.99,209.83,2.17954422]
[1759100874074,7.54,210.0,209.94,2.17954422]
[1759100874979,7.54,210.0,209.89,2.17954422]
[1759100875177,11.8237,210.0,209.89,2.17954422]
[1759100875380,7.54,210.0,209.89,2.17954422]
[1759100875582,22.0,210.03,209.92,2.17954422]
[1759100875778,22.0,210.03,209.92,6.46494422]
[1759100875974,7.54,210.02,209.92,6.46494422]
[1759100877373,7.54,210.02,209.92,4.2854]
[1759100877774,11.8234,210.02,209.92,4.2854]
[1759100878078,7.54,210.02,209.91,2.17954422]
[1759100878275,7.54,210.02,209.89,6.46554422]
[1759100878680,7.54,209.99,209.89,6.46554422]
[1759100879888,7.54,209.99,209.9,4.2856]
[1759100880476,7.54,209.97,209.87,4.2863]
[1759100882777,7.54,209.97,209.88,2.17954422]
[1759100883481,4.2833,210.03,209.88,2.17954422]
[1759100883786,7.54,210.02,209.92,4.2853]
[1759100884685,7.54,210.02,209.94,4.285]
[1759100884880,7.54,210.02,209.91,2.17954422]
[1759100885081,7.54,210.02,209.91,6.46494422]
[1759100885879,7.54,210.02,209.91,2.17954422]
[1759100886577,351.0029,210.05,209.94,2.17954422]
[1759100886578,354.26,210.05,209.94,2.17954422]
[1759100887185,1.80802778,210.08,209.97,2.17954422]
[1759100887478,7.54,210.07,210.0,2.17954422]
[1759100888085,1.80802778,210.08,210.0,2.17954422]
[1759100888282,7.54,210.11,210.03,2.17954422]
[1759100888682,38.06,210.12,210.04,4.2829]
[1759100889880,7.54,210.11,209.97,66.6445]
[1759100890084,7.54,210.11,210.0,2.17954422]
[1759100890285,7.54,210.11,210.01,2.17954422]
[1759100890584,7.54,210.11,210.01,68.81244422]
[1759100890786,7.54,210.11,210.01,2.17954422]
[1759100890982,71.94,210.14,209.97,66.6445]
[1759100890983,2.17954422,210.12,209.97,2.17954422]
[1759100891181,7.54,210.11,209.97,2.17954422]
[1759100891488,11.8216,210.11,209.98,4.2841]
[1759100892287,7.77,210.09,210.0,4.2837]
[1759100892493,7.77,210.09,210.0,68.81554422]
[1759100893087,7.77,210.09,210.0,2.17954422]
[1759100893393,2.17954422,210.11,209.97,1.65834328]
[1759100893594,66.5994,210.12,209.97,1.65834328]
[1759100893595,7.77,210.07,209.97,1.65834328]
[1759100893793,2.17954422,210.05,209.93,4.2851]
[1759100894086,7.77,210.09,209.99,2.17954422]
[1759100894292,7.77,210.09,209.99,6.46324422]
[1759100894693,7.77,210.09,209.99,2.17954422]
[1759100894900,1.19613829,210.15,210.02,2.17954422]
[1759100894901,7.77,210.14,210.02,2.17954422]
[1759100895287,3.37568251,210.15,209.98,68.82144422]
[1759100895487,7.77,210.14,210.02,4.2833]
[1759100895882,7.77,210.14,209.98,68.82144422]
[1759100896088,7.77,210.14,210.01,4.2835]
[1759100896287,12.051,210.14,210.01,4.2835]
[1759100896890,64.2,210.13,210.01,4.2835]
[1759100897185,64.2,210.13,210.04,66.6237]
[1759100897186,7.77,210.12,210.04,66.6237]
[1759100897387,7.77,210.12,210.04,68.80324422]
[1759100897788,7.77,210.12,210.04,6.46234422]
[1759100898389,7.77,210.12,210.04,4.2828]
[1759100898589,7.77,210.12,210.06,4.2825]
[1759100899589,7.77,210.12,210.03,66.6265]
[1759100899795,4.81947609,210.37,210.05,66.6197]
[1759100899796,7.77,210.17,210.05,66.6197]
[1759100899989,7.77,210.17,210.06,4.2823]
[1759100900695,12.0503,210.17,210.06,4.2823]
[1759100901290,7.77,210.17,210.08,4.2821]
[1759100901497,55.88,210.16,210.08,4.2821]
[1759100902698,55.88,210.16,210.05,6.46224422]
[1759100902898,7.77,210.15,210.01,2.17954422]
[1759100903397,7.77,210.15,210.04,4.2828]
[1759100903591,7.77,210.15,210.02,66.6295]
[1759100903797,7.77,210.15,210.04,68.80214422]
[1759100904093,7.77,210.15,210.09,4.2819]
[1759100904693,7.77,210.15,210.05,66.6206]
[1759100905400,7.77,210.15,210.1,4.2817]
[1759100905987,7.96,210.19,210.08,4.2821]
[1759100907298,7.96,210.19,210.1,4.2816]
[1759100907799,7.96,210.19,210.12,4.2813]
[1759100908196,7.96,210.19,210.1,66.6048]
[1759100908593,7.96,210.19,210.07,2.17954422]
[1759100908991,7.96,210.19,210.07,68.79334422]
[1759100909700,7.96,210.19,210.12,4.2813]
[1759100910600,7.96,210.19,210.1,1.39074617]
[1759100910801,7.96,210.17,210.08,1.39074617]
[1759100911003,7.96,210.17,210.1,4.2817]
[1759100912195,1.39074617,210.2,210.12,4.2812]
[1759100912402,7.96,210.19,210.12,4.2812]
[1759100912896,7.96,210.19,210.12,1.39074617]
[1759100913094,7.96,210.24,210.16,1.39074617]
[1759100913298,9.35074617,210.24,210.14,1.39074617]
[1759100913792,9.35074617,210.24,210.15,4.2807]
[1759100914199,7.96,210.24,210.14,1.39074617]
[1759100914500,7.96,210.24,210.16,1.39074617]
[1759100915192,7.96,210.24,210.14,1.39074617]
[1759100916097,7.96,210.24,210.16,1.39074617]
[1759100916504,7.96,210.28,210.18,1.39074617]
[1759100917000,7.96,210.28,210.19,4.2798]
[1759100917202,7.96,210.28,210.2,1.39074617]
[1759100917706,7.96,210.28,210.22,1.39074617]
[1759100917900,1.39074617,210.33,210.22,1.39074617]
[1759100918108,7.96,210.32,210.24,1.39074617]
[1759100919502,7.96,210.32,210.23,14.20019311]
[1759100919701,7.96,210.32,210.25,1.39074617]
[1759100920002,7.96,210.32,210.17,164.4619]
[1759100920203,7.96,210.26,210.23,1.39074617]
[1759100920402,7.96,210.26,210.21,1.39074617]
[1759100920707,7.96,210.26,210.19,1.39074617]
[1759100920908,7.96,210.26,210.17,5.67084617]
[1759100921113,9.35074617,210.25,210.16,1.39074617]
[1759100921303,9.35074617,210.25,210.12,118.72]
[1759100921304,7.96,210.25,210.14,66.5906]
[1759100921501,7.96,210.25,210.19,1.39074617]
[1759100922004,14.41826779,210.27,210.11,1.39074617]
[1759100922005,1.39074617,210.22,210.11,1.39074617]
[1759100922305,7.96,210.19,210.1,1.39074617]
[1759100923008,7.96,210.19,210.1,15.97932236]
[1759100923209,7.96,210.19,210.11,4.2814]
[1759100923899,1.39074617,210.23,210.12,1.39074617]
[1759100924097,7.96,210.23,210.16,1.39074617]
[1759100924301,22.37826779,210.27,210.16,66.5858]
[1759100924808,7.96,210.26,210.13,185.8928]
[1759100925708,7.96,210.26,210.16,4.2803]
[1759100926111,7.96,210.26,210.18,4.2801]
[1759100927213,7.96,210.26,210.15,4.2806]
[1759100927513,12.2385,210.26,210.15,4.2806]
[1759100928005,7.96,210.25,210.1,81.19277619]
[1759100928206,7.96,210.25,210.11,66.6017]
[1759100928514,4.2785,210.26,210.11,66.6017]
[1759100928706,7.96,210.25,210.11,66.6017]
[1759100929114,7.96,210.25,210.15,4.2805]
[1759100929516,7.96,210.23,210.15,4.2805]
[1759100930817,7.96,210.23,210.15,66.5868]
[1759100931006,7.96,210.23,210.17,66.5824]
[1759100931207,22.37826779,210.27,210.21,4.2793]
[1759100931714,22.37826779,210.27,210.17,66.5824]
[1759100931715,7.96,210.26,210.22,4.2791]
[1759100931912,14.41826779,210.27,210.21,66.5688]
[1759100932114,14.41826779,210.27,210.26,4.2784]
[1759100933222,6.19822499,210.27,210.26,4.2784]
[1759100934716,7.96,210.34,210.29,4.2778]
[1759100934922,66.476,210.51,210.31,66.5383]
[1759100935124,7.72,210.43,210.3,119.62]
[1759100935422,7.72,210.43,210.32,4.2771]
[1759100936330,7.72,210.43,210.34,4.2767]
[1759100936723,7.72,210.43,210.29,66.5432]
[1759100936926,7.72,210.43,210.31,4.2773]
[1759100937120,7.72,210.43,210.27,1.71070159]
[1759100937326,7.72,210.41,210.27,1.71070159]
[1759100937525,7.72,210.41,210.23,66.5624]
[1759100937725,4.2757,210.4,210.25,4.2786]
[1759100937923,7.72,210.4,210.22,59.74]
[1759100938125,30.4,210.39,210.22,59.74]
[1759100938324,7.72,210.38,210.22,59.74]
[1759100938526,7.72,210.35,210.24,4.2788]
[1759100938733,7.72,210.35,210.2,73.87634521]
[1759100939032,7.72,210.35,210.2,142.42949489]
[1759100939229,4.2768,210.34,210.18,3.92685032]
[1759100939430,74.2463,210.35,210.17,3.92685032]
[1759100939731,7.72,210.35,210.17,70.50905032]
[1759100940031,11.9967,210.35,210.2,4.2796]
[1759100940231,11.9967,210.35,210.19,66.5759]
[1759100940625,7.72,210.35,210.22,4.2792]
[1759100940822,7.72,210.35,210.22,66.5669]
[1759100941023,7.72,210.35,210.24,66.5601]
[1759100941226,7.72,210.35,210.25,66.5569]
[1759100941623,7.72,210.35,210.28,4.2779]
[1759100942030,7.72,210.41,210.28,4.2779]
[1759100943436,7.72,210.38,210.2,3.9325806]
[1759100943640,7.72,210.41,210.23,66.5636]
[1759100943932,3.37789489,210.41,210.23,66.5636]
[1759100944336,4.276,210.39,210.26,4.2784]
[1759100944534,7.72,210.38,210.26,4.2784]
[1759100944734,7.72,210.38,210.21,66.5696]
[1759100945031,66.5141,210.39,210.21,66.5696]
[1759100945430,7.72,210.38,210.21,70.5021806]
[1759100945734,7.72,210.36,210.23,4.2789]
[1759100946729,11.9965,210.36,210.23,4.2789]
[1759100947336,7.72,210.33,210.21,3.9325806]
[1759100947536,7.72,210.33,210.2,4.2795]
[1759100947935,7.72,210.33,210.24,4.2788]
[1759100948233,7.72,210.33,210.22,66.5665]
[1759100948835,7.72,210.33,210.26,4.2784]
[1759100950234,7.72,210.33,210.22,8.2116806]
[1759100952342,7.72,210.33,210.2,3.9325806]
[1759100952534,7.72,210.33,210.21,3.9325806]
[1759100953641,7.72,210.33,210.22,3.9325806]
[1759100953842,7.72,210.33,210.21,8.2119806]
[1759100954338,4.2768,210.34,210.22,3.9325806]
[1759100954544,66.4597,210.56,210.32,66.5345]
[1759100954840,7.98,210.54,210.35,66.5251]
[1759100955037,7.98,210.53,210.4,4.2755]
[1759100955234,7.98,210.53,210.39,66.5127]
[1759100955438,7.98,210.53,210.42,4.2751]
[1759100956645,7.98,210.53,210.39,4.2756]
[1759100956842,7.98,210.53,210.38,66.5157]
[1759100957439,7.98,210.57,210.42,66.503]
[1759100957741,66.4316,210.65,210.43,3.37789489]
[1759100957742,7.98,210.62,210.43,3.37789489]
[1759100957942,7.98,210.6,210.43,3.37789489]
[1759100958246,66.4478,210.6,210.41,105.54]
[1759100958544,7.98,210.56,210.4,7.65339489]
[1759100958737,7.98,210.56,210.4,3.37789489]
[1759100958943,41.2,210.55,210.4,3.37789489]
[1759100959239,7.98,210.54,210.4,3.37789489]
[1759100959942,7.98,210.54,210.4,7.65339489]
[1759100960532,7.98,210.54,210.4,3.37789489]
[1759100960734,7.98,210.54,210.38,76.10597703]
[1759100960938,7.98,210.52,210.38,14.10597703]
[1759100961143,7.98,210.52,210.37,3.37789489]
[1759100961542,7.98,210.52,210.37,17.43750604]
[1759100962049,7.98,210.52,210.37,21.71360604]
[1759100962736,7.98,210.52,210.41,3.37789489]
[1759100962941,34.2,210.53,210.41,3.37789489]
[1759100962942,34.2,210.53,210.42,66.5036]
[1759100963342,42.18,210.53,210.41,3.37789489]
[1759100964543,42.18,210.53,210.42,4.2751]
[1759100964743,42.18,210.53,210.41,3.37789489]
[1759100964942,7.98,210.53,210.41,3.37789489]
[1759100965142,119.74,210.53,210.41,3.37789489]
[1759100965547,7.98,210.53,210.41,3.37789489]
[1759100965745,128.98,210.53,210.41,3.37789489]
[1759100965945,128.96,210.53,210.41,3.37789489]
[1759100966547,128.96,210.53,210.41,7.65319489]
[1759100966742,7.7,210.52,210.37,17.43750604]
[1759100966943,7.7,210.52,210.37,3.37789489]
[1759100967447,7.7,210.52,210.41,4.2753]
[1759100968742,7.7,210.52,210.37,17.66569081]
[1759100969246,7.7,210.52,210.4,4.2756]
[1759100969447,128.58,210.52,210.4,4.2756]
[1759100969645,128.58,210.52,210.37,17.66569081]
[1759100969646,120.88,210.52,210.37,17.66569081]
[1759100969848,120.88,210.52,210.37,21.94169081]
[1759100970447,7.7,210.51,210.37,18.56379592]
[1759100970649,7.7,210.51,210.39,4.2757]
[1759100970852,120.8,210.5,210.39,4.2757]
[1759100972055,7.7,210.49,210.39,4.2757]
[1759100972554,7.7,210.49,210.37,14.28779592]
[1759100972748,120.74,210.49,210.34,121.04]
[1759100972942,125.0138,210.49,210.34,135.61766519]
[1759100973149,120.74,210.49,210.34,135.61766519]
[1759100973350,7.7,210.48,210.34,135.61766519]
[1759100973544,120.74,210.49,210.34,135.61766519]
[1759100973750,7.7,210.46,210.34,14.57766519]
[1759100974050,7.7,210.46,210.32,68.20242044]
[1759100974350,70.18,210.45,210.35,4.2766]
[1759100974556,7.7,210.44,210.35,4.2766]
[1759100975049,7.7,210.44,210.37,4.2762]
[1759100975255,30.56,210.48,210.36,66.5225]
[1759100975853,7.7,210.47,210.39,4.2758]
[1759100977257,7.7,210.57,210.39,66.5118]
[1759100977464,7.7,210.51,210.35,70.44126589]
[1759100977663,66.4657,210.54,210.35,70.44126589]
[1759100977961,74.169,210.53,210.37,4.276]
[1759100978153,4.2736,210.5,210.37,4.276]
[1759100978354,7.7,210.49,210.37,4.276]
[1759100978561,7.7,210.47,210.37,4.276]
[1759100980566,7.7,210.47,210.35,70.43956589]
[1759100980763,7.7,210.47,210.36,66.5225]
[1759100981170,7.7,210.47,210.39,4.2756]
[1759100983261,11.9742,210.47,210.34,3.91586589]
[1759100983666,33.54,210.48,210.32,16.12171162]
[1759100983969,7.7,210.43,210.34,4.2767]
[1759100984563,4.2752,210.42,210.32,16.12171162]
[1759100984966,4.2756,210.41,210.32,16.12171162]
[1759100985166,7.7,210.4,210.32,16.12171162]
[1759100985562,7.7,210.4,210.32,14.45359118]
[1759100985766,7.7,210.4,210.29,5.36578665]
[1759100986368,7.7,210.4,210.28,3.92312114]
[1759100986563,11.9758,210.4,210.28,3.92312114]
[1759100986765,7.7,210.4,210.28,14.2253383]
[1759100987068,7.7,210.4,210.27,3.92312114]
[1759100987259,7.7,210.4,210.26,124.56312114]
[1759100987465,7.7,210.4,210.26,191.11602114]
[1759100988063,82.3,210.4,210.26,191.11602114]
[1759100988462,86.5756,210.4,210.3,4.2774]
[1759100988971,82.3,210.4,210.3,4.2774]
[1759100989363,86.5756,210.4,210.3,4.2774]
[1759100989662,82.3,210.4,210.3,4.2774]
[1759100989973,120.3,210.39,210.3,4.2774]
[1759100990573,124.576,210.39,210.3,4.2774]
[1759100990770,7.7,210.4,210.3,4.2774]
[1759100990972,72.88,210.4,210.3,4.2774]
[1759100991172,127.92,210.4,210.31,4.2772]
[1759100992167,127.88,210.4,210.31,4.2772]
[1759100992772,7.7,210.4,210.31,4.2772]
[1759100992971,77.82,210.4,210.31,4.2772]
[1759100993173,7.7,210.38,210.29,6.44654185]
[1759100993871,7.7,210.38,210.28,18.33884941]
[1759100994071,7.44,210.38,210.27,8.20132114]
[1759100994669,7.44,210.38,210.28,3.92312114]
[1759100994969,120.14,210.39,210.28,3.92312114]
[1759100995172,120.14,210.39,210.25,3.92312114]
[1759100995173,7.44,210.36,210.25,3.92312114]
[1759100995369,7.44,210.35,210.26,14.57893345]
[1759100995570,4.2775,210.31,210.26,14.57893345]
[1759100995872,7.44,210.3,210.21,10.37116299]
[1759100996074,7.44,210.3,210.21,6.44804185]
[1759100996273,7.44,210.3,210.21,4.2793]
[1759100996469,4.2779,210.29,210.19,6.09186299]
[1759100996773,7.44,210.28,210.19,6.09186299]
[1759100997476,7.44,210.28,210.21,4.2793]
[1759100997866,7.44,210.28,210.19,2.16874185]
[1759100998370,7.44,210.28,210.21,4.2794]
[1759101000781,7.44,210.28,210.19,14.54528499]
[1759101001077,4.2781,210.28,210.18,3.93727307]
[1759101001278,7.44,210.27,210.17,3.93727307]
[1759101001580,7.44,210.29,210.15,3.93727307]
[1759101001778,7.44,210.29,210.14,3.93727307]
[1759101002373,7.44,210.29,210.13,3.93727307]
[1759101002570,7.44,210.28,210.13,3.93727307]
[1759101002775,7.44,210.31,210.19,66.5761]
[1759101003373,7.44,210.31,210.23,4.279]
[1759101003777,7.44,210.31,210.21,66.5691]
[1759101004677,7.44,210.31,210.25,4.2786]
[1759101004880,7.44,210.31,210.2,66.5732]
[1759101005277,7.44,210.31,210.19,3.93727307]
[1759101005480,7.44,210.31,210.2,66.571]
[1759101006278,7.44,210.31,210.22,4.2792]
[1759101006577,7.44,210.31,210.19,66.5761]
[1759101007274,7.44,210.31,210.23,4.2789]
[1759101007878,7.44,210.31,210.25,4.2786]
[1759101008379,346.04,210.39,210.22,66.5663]
[1759101008380,7.44,210.35,210.23,66.562]
[1759101009177,7.44,210.35,210.27,4.278]
[1759101009578,7.44,210.35,210.21,3.93727307]
[1759101009780,7.44,210.35,210.2,3.93727307]
[1759101009984,7.44,210.33,210.17,3.93727307]
[1759101010282,7.44,210.31,210.16,3.93727307]
[1759101010477,7.44,210.31,210.15,3.93727307]
[1759101010880,4.2782,210.28,210.16,8.21777307]
[1759101011080,7.44,210.25,210.13,3.93727307]
[1759101011379,7.44,210.25,210.09,3.93727307]
[1759101011583,7.44,210.25,210.09,3.96727307]
[1759101011781,7.39,210.21,210.09,3.96727307]
[1759101012685,7.39,210.21,210.12,4.2811]
[1759101012982,7.39,210.21,210.09,3.96727307]
[1759101012983,11.6697,210.21,210.09,3.96727307]
[1759101013181,4.2797,210.21,210.09,22.20600648]
[1759101013478,7.39,210.18,210.06,3.93727307]
[1759101013883,81.75,210.18,210.06,3.96727307]
[1759101014482,4.2803,210.17,210.07,4.2823]
[1759101014677,4.2803,210.17,210.06,0.03]
[1759101014886,7.39,210.16,210.06,14.49289659]
[1759101015181,7.39,210.16,210.06,0.03]
[1759101015879,7.39,210.16,210.1,4.2817]
[1759101016678,7.39,210.23,210.1,4.3117]
[1759101016878,78.79,210.2,210.1,4.3117]
[1759101017688,7.39,210.2,210.1,0.03]
[1759101018186,7.39,210.18,210.07,4.2821]
[1759101018583,7.39,210.18,210.06,14.38879133]
[1759101018584,57.08,210.2,210.06,14.38879133]
[1759101018793,7.39,210.14,210.0,5.37603216]
[1759101018997,7.39,210.14,210.01,0.03]
[1759101019185,7.39,210.14,210.01,14.53062662]
[1759101019391,7.39,210.16,210.01,0.03]
[1759101019590,7.39,210.12,210.01,4.3134]
[1759101019794,102.51,210.12,210.01,4.3134]
[1759101019990,7.39,210.12,210.01,0.03]
[1759101020196,7.39,210.12,210.03,4.2831]
[1759101020395,7.39,210.12,210.01,0.03]
[1759101020694,11.6714,210.12,210.01,0.03]
[1759101020897,7.39,210.12,210.01,0.03]
[1759101021097,186.7561,210.13,210.01,13.92665538]
[1759101021397,186.7561,210.13,209.99,104.96]
[1759101021599,7.39,210.09,209.99,109.2439]
[1759101021895,7.39,210.09,209.97,0.03]
[1759101022093,7.39,210.08,209.95,5.55384293]
[1759101022494,7.39,210.08,209.95,1.26914293]
[1759101022699,7.39,210.08,209.96,0.03]
[1759101023202,7.39,210.08,209.97,66.6461]
[1759101024104,7.39,210.08,210.0,0.03]
[1759101024695,7.39,210.08,210.03,4.2831]
[1759101024899,104.58,210.14,210.02,0.03]
[1759101026000,8.0,210.14,210.02,0.03]
[1759101026304,8.0,210.14,210.02,4.3132]
[1759101026901,12.2811,210.14,210.02,4.3132]
[1759101027102,103.9611,210.14,210.02,4.3132]
[1759101027304,103.9611,210.14,210.03,4.2829]
[1759101028406,103.9611,210.14,210.02,0.03]
[1759101029204,8.0,210.12,210.02,0.03]
[1759101029901,8.0,210.12,210.02,4.3131]
[1759101030508,8.0,210.12,210.05,4.2826]
[1759101030712,8.0,210.17,210.06,66.6172]
[1759101031603,8.0,210.17,210.09,4.2818]
[1759101032005,8.0,210.17,210.08,0.03]
[1759101032204,8.0,210.17,210.01,70.55738294]
[1759101032205,8.0,210.17,210.06,4.2824]
[1759101032508,8.0,210.17,210.03,0.03]